[Event "DFMMLV 2017"]
[Site "Braunfels"]
[Date "2017.06.16"]
[Round "3"]
[White "Belenkaya, Dina"]
[Black "Zimmer, Elke"]
[Result "1-0"]
[ECO "C47"]
[WhiteElo "2306"]
[BlackElo "1951"]
[Annotator "ChessBase"]
[PlyCount "91"]
[EventDate "2017.??.??"]
[EventType "team-tourn"]
[EventCountry "GER"]
[SourceTitle "playchess.com"]
[Source "ChessBase"]
[SourceQuality "1"]
[TimeControl "40/5400+30:1800+30"]

1. e4 {[%emt 0:00:00]} e5 {[%emt 0:00:28]} 2. Nf3 {[%emt 0:00:00]} Nc6 {[%emt 0:00:08]} 3. Nc3 {[%emt 0:00:00]} Nf6 {[%emt 0:00:14]} 4. d4 {[%emt 0:00:00]} exd4 {[%emt 0:05:19]} 5. Nxd4 {[%emt 0:00:00]} Bb4 {[%emt 0:09:15]} 6. Nxc6 {[%emt 0:00:01]} bxc6 {[%emt 0:00:05]} 7. Bd3 {[%emt 0:00:05]} d6 {[%emt 0:01:55]} 8. O-O {[%emt 0:00:24]} Bg4 {[%emt 0:03:16]} 9. f3 {[%emt 0:00:37]} Bc5+ {[%emt 0:00:18]} 10. Kh1 {[%emt 0:00:06]} Bd7 {[%emt 0:03:33]} 11. Bg5 {[%emt 0:01:52]} h6 {[%emt 0:00:07]} 12. Bh4 {[%emt 0:01:05]} g5 {[%emt 0:01:35]} 13. Be1 {[%emt 0:01:04]} Rb8 {[%emt 0:02:00]} 14. Bc4 {[%emt 0:01:10]} Be6 {[%emt 0:04:46]} 15. Bb3 {[%emt 0:01:25]} Nh5 {[%emt 0:03:35]} 16. Ne2 {[%emt 0:02:18]} Qe7 {[%emt 0:04:13]} 17. Bc3 {[%emt 0:02:59]} O-O {[%emt 0:04:21]} 18. Nd4 {[%emt 0:00:44]} Bd7 {[%emt 0:11:07]} 19. Ba4 {[%emt 0:01:26]} Qe8 {[%emt 0:02:32]} 20. Qd2 {[%emt 0:03:14]} f6 {[%emt 0:03:57]} 21. Rae1 {[%emt 0:02:50]} Bxd4 {[%emt 0:04:08]} 22. Qxd4 {[%emt 0:00:28]} c5 {[%emt 0:00:04]} 23. Qd5+ {[%emt 0:00:32]} Kh7 {[%emt 0:00:18]} 24. Bxd7 {[%emt 0:01:57]} Qxd7 {[%emt 0:00:07]} 25. Qd2 {[%emt 0:03:45]} Rbe8 {[%emt 0:01:45]} 26. g3 {[%emt 0:01:22]} Rf7 {[%emt 0:02:23]} 27. Kg1 {[%emt 0:01:28]} Ng7 {[%emt 0:06:51]} 28. Rf2 {[%emt 0:05:09]} Ne6 {[%emt 0:06:53]} 29. Qd3 {[%emt 0:01:09]} Nd8 {[%emt 0:01:24]} 30. e5+ {[%emt 0:01:22]} f5 {[%emt 0:00:26]} 31. Rfe2 {[%emt 0:02:50]} Rfe7 {[%emt 0:02:45]} 32. g4 {[%emt 0:10:46]} dxe5 {[%emt 0:00:09]} 33. Qxd7 {[%emt 0:00:46]} Rxd7 {[%emt 0:00:07]} 34. Rxe5 {[%emt 0:00:07]} Rxe5 {[%emt 0:03:13]} 35. Rxe5 {[%emt 0:00:07]} fxg4 {[%emt 0:00:10]} 36. fxg4 {[%emt 0:00:05]} Nc6 {[%emt 0:02:24]} 37. Rxc5 {[%emt 0:00:17]} Rd6 {[%emt 0:00:04]} 38. b4 {[%emt 0:05:10]} a6 {[%emt 0:02:55]} 39. a4 {[%emt 0:01:39]} Kg6 {[%emt 0:01:23]} 40. Kf2 {[%emt 0:04:39]} h5 {[%emt 0:31:36]} 41. b5 {[%emt 0:31:26]} axb5 {[%emt 0:01:13]} 42. axb5 {[%emt 0:00:03]} Na7 {[%emt 0:01:29]} 43. Be5 {[%emt 0:02:04]} Rb6 {[%emt 0:00:07]} 44. c4 {[%emt 0:01:13]} c6 {[%emt 0:01:54]} 45. Bc7 {[%emt 0:00:16]} Rb7 {[%emt 0:00:07]} 46. b6 {[%emt 0:00:03]} 1-0

[Event "DFMMLV 2017"]
[Site "Braunfels"]
[Date "2017.06.16"]
[Round "3"]
[White "Rogozenco, Teodora"]
[Black "Hielscher, Ursula"]
[Result "1-0"]
[ECO "D35"]
[WhiteElo "2147"]
[BlackElo "1835"]
[Annotator "NA"]
[PlyCount "95"]
[EventDate "2017.??.??"]
[EventType "team-tourn"]
[EventCountry "GER"]
[SourceTitle "playchess.com"]
[Source "ChessBase"]
[SourceQuality "1"]
[TimeControl "40/5400+30:1800+30"]

1. d4 {[%emt 0:00:00]} d5 {[%emt 0:00:03]} 2. c4 {[%emt 0:00:00]} e6 {[%emt 0:00:08]} 3. Nc3 {[%emt 0:00:04]} Nf6 {[%emt 0:00:04]} 4. cxd5 {[%emt 0:00:05]} exd5 {[%emt 0:00:05]} 5. Bg5 {[%emt 0:00:08]} Be7 {[%emt 0:01:13]} 6. e3 {[%emt 0:00:51]} O-O {[%emt 0:05:25]} 7. Bd3 {[%emt 0:00:15]} c6 {[%emt 0:06:21]} 8. Qc2 {[%emt 0:00:32]} Nbd7 {[%emt 0:00:24]} 9. Nf3 {[%emt 0:00:08]} h6 {[%emt 0:00:28]} 10. Bf4 {[%emt 0:00:26]} Re8 {[%emt 0:01:19]} 11. h3 {[%emt 0:00:07]} Nf8 {[%emt 0:03:47]} 12. Bh2 {[%emt 0:05:15] D36: Queen's Gambit Declined: Exchange Variation: Main line (5 Bg5 c6 6 Qc2)} (12. O-O-O Bb4 13. Nd2 Bxc3 14. Qxc3 Ne4 15. Nxe4 dxe4 16. Bc2 Be6 17. g4 a5 18. Bb3 a4 19. Bxe6 Nxe6 {0-1 (52) Narciso Dublan,M (2540)-Bracker,F (2407) Llucmajor 2016}) 12... Bd6 {[%emt 0:03:06]} 13. Ne5 {[%emt 0:00:15]} a6 {[%emt 0:09:17]} 14. O-O {[%emt 0:03:55]} c5 {[%emt 0:01:37]} 15. Nf3 $146 {[%emt 0:11:43]} ({Predecessor:} 15. Rac1 cxd4 16. exd4 Ne6 17. Nf3 Bxh2+ 18. Kxh2 Bd7 19. Bf5 Bc6 20. Bxe6 Rxe6 21. Ne5 {½-½ (94) Schindler,C (2262)-Salzmann,P (2176) Germany 2014}) 15... Bxh2+ {[%emt 0:00:50]} 16. Kxh2 {[%emt 0:00:57]} Ne6 {[%emt 0:06:26]} 17. dxc5 {[%emt 0:06:36]} Qc7+ {[%emt 0:05:48]} 18. Kg1 {[%emt 0:00:31]} Nxc5 {[%emt 0:01:22]} ({Black should try} 18... Qxc5 $14 19. Rfd1 b6) 19. Na4 {[%emt 0:02:13]} Ne6 {[%emt 0:02:41]} 20. Qxc7 {[%emt 0:00:43]} Nxc7 {[%emt 0:00:04]} 21. Nb6 {[%emt 0:00:06]} Rb8 {[%emt 0:00:19]} 22. Rac1 {[%emt 0:03:22]} Na8 {[%emt 0:01:43]} 23. Nxa8 {[%emt 0:08:13]} Rxa8 {[%emt 0:00:05]} 24. Rc7 {[%emt 0:00:05]} b5 {[%emt 0:07:14]} 25. Nd4 {[%emt 0:04:37]} Bd7 {[%emt 0:05:14]} 26. Bf5 {[%emt 0:05:13]} Bxf5 {[%emt 0:07:17]} 27. Nxf5 {[%emt 0:00:06]} Red8 {[%emt 0:00:26]} 28. Rfc1 {[%emt 0:06:54]} Kf8 {[%emt 0:03:36]} 29. R1c6 {[%emt 0:01:07]} Rd7 {[%emt 0:03:09]} 30. Rc8+ {[%emt 0:01:20]} Rd8 {[%emt 0:00:15]} 31. Rxd8+ {[%emt 0:00:17]} Rxd8 {[%emt 0:00:06]} 32. Rxa6 {[%emt 0:00:22]} Kg8 {[%emt 0:06:28] [#]} (32... b4 $142 33. f3 Rb8 34. Nxh6 b3) 33. Nxh6+ $1 {[%emt 0:10:00]} gxh6 {[%emt 0:00:26]} 34. Rxf6 {[%emt 0:00:06]} Rc8 {[%emt 0:00:27]} 35. Rxh6 {[%emt 0:00:29]} Rc1+ {[%emt 0:00:17]} 36. Kh2 {[%emt 0:00:03]} Rc2 {[%emt 0:00:04]} 37. Rb6 {[%emt 0:09:27]} Rxb2 {[%emt 0:00:17]} 38. Kg3 {[%emt 0:00:47]} Kf8 {[%emt 0:00:49]} 39. h4 {[%emt 0:03:32]} Ke7 {[%emt 0:00:56]} 40. a3 {[%emt 0:00:43]} Kd7 {[%emt 0:30:37]} 41. h5 {[%emt 0:30:32]} Kc7 {[%emt 0:00:35]} 42. h6 $18 {[%emt 0:03:14]} Rb1 {[%emt 0:00:15]} 43. Rf6 {[%emt 0:00:05]} Rh1 {[%emt 0:00:21]} 44. Rxf7+ {[%emt 0:00:13]} Kc6 {[%emt 0:00:45]} 45. Rh7 {[%emt 0:00:35]} Kc5 {[%emt 0:00:44]} 46. Rh8 {[%emt 0:01:04]} Kc4 {[%emt 0:00:27]} 47. h7 {[%emt 0:00:03]} Kb3 {[%emt 0:00:11]} 48. f4 {[%emt 0:00:25]} 1-0

[Event "DFMMLV 2017"]
[Site "Braunfels"]
[Date "2017.06.16"]
[Round "3"]
[White "Malachowski, Margrit"]
[Black "Just, Anita"]
[Result "0-1"]
[ECO "A04"]
[WhiteElo "2132"]
[BlackElo "1967"]
[Annotator "NA"]
[PlyCount "62"]
[EventDate "2017.??.??"]
[EventType "team-tourn"]
[EventCountry "GER"]
[SourceTitle "playchess.com"]
[Source "ChessBase"]
[SourceQuality "1"]
[TimeControl "40/5400+30:1800+30"]

1. Nf3 {[%emt 0:00:00]} e6 {[%emt 0:00:14]} 2. b3 {[%emt 0:00:26]} f5 {[%emt 0:00:36]} 3. Bb2 {[%emt 0:01:03]} Nf6 {[%emt 0:00:09]} 4. c4 {[%emt 0:01:59]} Be7 {[%emt 0:00:32]} 5. d3 {[%emt 0:04:42] A10: English Opening: Unusual Replies for Black} (5. g3 O-O 6. Bg2 d6 7. Nc3 Nbd7 8. O-O c6 9. d3 Qe8 10. e4 f4 11. gxf4 Nh5 12. Ne2 Nxf4 13. Nxf4 Rxf4 {0-1 (33) Dzagnidze,N (2520)-Batsiashvili,N (2482) Doha 2016}) 5... O-O {[%emt 0:01:33]} 6. g3 {[%emt 0:02:48]} b6 {[%emt 0:02:20]} 7. Bg2 {[%emt 0:00:22]} Bb7 {[%emt 0:00:22]} 8. O-O {[%emt 0:00:11]} Qe8 $146 {[%emt 0:01:47]} ({Predecessor:} 8... Nc6 9. Nbd2 Qe8 10. e4 fxe4 11. Nxe4 Nxe4 12. dxe4 d6 {1-0 (48) Lacourse,G-Libersan,M Gatineau 2006}) 9. Nbd2 {[%emt 0:01:06]} d6 {[%emt 0:03:01] [#]} 10. Qc2 {[%emt 0:11:40]} (10. e4 $1 $16) 10... Nbd7 {[%emt 0:02:38]} 11. b4 {[%emt 0:03:08]} Qh5 {[%emt 0:04:06]} 12. Nd4 {[%emt 0:22:43]} Bxg2 {[%emt 0:01:44]} 13. Kxg2 {[%emt 0:00:07]} e5 {[%emt 0:14:49]} 14. Nc6 {[%emt 0:04:52]} Rae8 {[%emt 0:02:52]} 15. e3 {[%emt 0:05:22]} f4 {[%emt 0:13:50]} 16. exf4 {[%emt 0:13:40]} exf4 {[%emt 0:01:03]} 17. f3 {[%emt 0:01:28]} (17. Rae1 $11 {remains equal.} fxg3 18. hxg3) 17... d5 {[%emt 0:13:44]} 18. Nxe7+ {[%emt 0:03:55]} Rxe7 {[%emt 0:00:13]} 19. Rae1 {[%emt 0:00:15]} Rfe8 {[%emt 0:01:40]} 20. Qd1 {[%emt 0:01:13]} Qg6 {[%emt 0:00:46]} 21. Rxe7 {[%emt 0:01:00]} Rxe7 {[%emt 0:00:07]} 22. Bxf6 {[%emt 0:06:36]} Nxf6 {[%emt 0:00:47]} 23. Re1 {[%emt 0:02:00] [#]} Rxe1 $1 {[%emt 0:03:01]} 24. Qxe1 {[%emt 0:00:01]} Qxd3 {[%emt 0:01:35]} 25. cxd5 {[%emt 0:01:44]} Qxd5 {[%emt 0:02:03]} 26. Nb3 {[%emt 0:00:55]} Kf7 {[%emt 0:04:51]} 27. Qc1 {[%emt 0:03:23]} Qd6 {[%emt 0:03:44]} 28. gxf4 {[%emt 0:01:38]} (28. b5 $17) 28... Nd5 $19 {[%emt 0:03:20]} 29. Qc4 {[%emt 0:02:57]} Kf8 {[%emt 0:01:55]} 30. Kh1 {[%emt 0:01:35]} Nxf4 {[%emt 0:03:01]} 31. Nd4 {[%emt 0:01:08]} c5 {[%emt 0:02:56]} 0-1

[Event "DFMMLV 2017"]
[Site "Braunfels"]
[Date "2017.06.16"]
[Round "3"]
[White "Zpevakova, Jana"]
[Black "Frank, Michelle Viviane"]
[Result "1-0"]
[ECO "E61"]
[WhiteElo "2093"]
[BlackElo "1949"]
[Annotator "NA"]
[PlyCount "67"]
[EventDate "2017.??.??"]
[EventType "team-tourn"]
[EventCountry "GER"]
[SourceTitle "playchess.com"]
[Source "ChessBase"]
[SourceQuality "1"]
[TimeControl "40/5400+30:1800+30"]

1. d4 {[%emt 0:00:00]} Nf6 {[%emt 0:00:16]} 2. c4 {[%emt 0:00:00]} g6 {[%emt 0:00:04]} 3. Nc3 {[%emt 0:00:00]} Bg7 {[%emt 0:00:05]} 4. Nf3 {[%emt 0:00:00]} d6 {[%emt 0:00:06]} 5. Bg5 {[%emt 0:00:06]} h6 {[%emt 0:00:22]} 6. Bh4 {[%emt 0:00:31]} g5 {[%emt 0:00:12]} 7. Bg3 {[%emt 0:00:10]} Nh5 {[%emt 0:00:05]} 8. e3 {[%emt 0:01:11]} e6 {[%emt 0:01:13]} 9. Be2 {[%emt 0:00:28]} a6 {[%emt 0:02:13] E61: King's Indian: Early deviations for White, including Smyslov System} (9... Nd7 10. Qc2 Qe7 11. O-O-O Ndf6 12. Kb1 Bd7 13. Nd2 {½-½ (13) Moiseenko,A (2662)-Radjabov,T (2717) Sochi 2006}) 10. Qc2 {[%emt 0:00:58]} Qe7 {[%emt 0:06:28]} 11. Nd2 $146 {[%emt 0:02:34]} ({Predecessor:} 11. Rd1 Nd7 12. c5 Nxg3 13. cxd6 cxd6 14. hxg3 d5 15. e4 dxe4 16. Nxe4 Qb4+ {½-½ (55) Martinez,M-Fiorito,F (2425) Mar del Plata 1993}) 11... Nxg3 {[%emt 0:00:09]} 12. hxg3 {[%emt 0:00:05]} c6 {[%emt 0:01:33]} 13. b4 {[%emt 0:03:56]} O-O {[%emt 0:02:50]} 14. O-O {[%emt 0:01:59]} Nd7 {[%emt 0:07:15]} 15. Bf3 {[%emt 0:01:32]} d5 {[%emt 0:02:22]} 16. b5 {[%emt 0:01:51]} f5 {[%emt 0:01:55]} 17. bxc6 {[%emt 0:01:44]} bxc6 {[%emt 0:04:16]} 18. cxd5 {[%emt 0:00:13]} cxd5 {[%emt 0:00:21] [#]} 19. Nxd5 $1 {[%emt 0:00:17]} Qd6 $2 {[%emt 0:01:04]} (19... Qf7 20. Ne7+ Qxe7) 20. Nc4 {[%emt 0:02:40]} Qb8 {[%emt 0:00:14]} 21. Ne7+ {[%emt 0:01:38]} Kf7 {[%emt 0:00:34]} 22. Bxa8 {[%emt 0:00:47]} Kxe7 {[%emt 0:01:17]} 23. Bf3 {[%emt 0:01:00]} g4 {[%emt 0:03:51]} 24. Bc6 {[%emt 0:01:33]} h5 {[%emt 0:00:29]} 25. d5 {[%emt 0:01:01]} exd5 {[%emt 0:01:14]} 26. Rab1 {[%emt 0:02:06]} Qc7 {[%emt 0:01:31]} 27. Bxd7 {[%emt 0:03:31]} Bxd7 {[%emt 0:00:29]} 28. Na3 {[%emt 0:00:04]} Qxc2 {[%emt 0:02:59]} 29. Nxc2 {[%emt 0:00:04]} Bb5 {[%emt 0:00:06]} 30. Rfd1 {[%emt 0:01:34]} Bc4 {[%emt 0:03:02]} 31. Rb7+ {[%emt 0:00:44]} Kf6 {[%emt 0:00:06]} 32. Rdb1 $18 {[%emt 0:01:03]} Bh6 {[%emt 0:00:38]} 33. R1b6+ {[%emt 0:00:14]} Kg5 {[%emt 0:00:08]} 34. Rh7 {[%emt 0:00:48]} 1-0

[Event "DFMMLV 2017"]
[Site "Braunfels"]
[Date "2017.06.16"]
[Round "3"]
[White "Rempel, Yana"]
[Black "Liez, Franziska"]
[Result "1/2-1/2"]
[ECO "C22"]
[WhiteElo "2059"]
[BlackElo "1844"]
[Annotator "NA RC"]
[PlyCount "100"]
[EventDate "2017.??.??"]
[EventType "team-tourn"]
[EventCountry "GER"]
[SourceTitle "playchess.com"]
[Source "ChessBase"]
[SourceQuality "1"]
[TimeControl "40/5400+30:1800+30"]

1. e4 {[%emt 0:00:00]} e5 {[%emt 0:00:11]} 2. d4 {[%emt 0:00:01]} exd4 {[%emt 0:01:15]} 3. Qxd4 {[%emt 0:00:03]} Nc6 {[%emt 0:00:10]} 4. Qe3 {[%emt 0:00:04]} d6 {[%emt 0:07:13]} 5. Nc3 {[%emt 0:00:09]} Nf6 {[%emt 0:01:25]} 6. Bd2 {[%emt 0:00:15]} Be6 {[%emt 0:02:55]} 7. O-O-O {[%emt 0:00:52]} Qe7 {[%emt 0:04:35] C22: Centre Game} (7... g6 8. f4 Bg7 9. f5 Bd7 10. Qh3 Ne5 11. Be2 Bc6 12. Bf3 Qe7 13. Nge2 Nc4 14. Nd4 Qe5 15. Bh6 Bxh6+ 16. Qxh6 {1-0 (35) Nadj Hedjesi,B (2371)-Djuretanovic,I (2223) Senta 2007}) 8. Bb5 {[%emt 0:08:38]} g6 {[%emt 0:02:02]} 9. f4 {[%emt 0:06:32]} (9. Nd5 $5 Nxd5 10. exd5 Bxd5 11. Qd4 Bxg2 12. Qxh8 $16) 9... Bg7 $146 {[%emt 0:01:36]} ({Predecessor:} 9... Bd7 10. h3 a6 11. Bd3 O-O-O 12. Nf3 Bg7 13. Rhe1 Rde8 14. e5 dxe5 15. Nxe5 {1-0 (23) Barragan Hernandez,M (2050)-Eilais,M (1779) Barcelona 2015}) 10. Nf3 {[%emt 0:01:34]} Bd7 {[%emt 0:04:53]} 11. Rhe1 {[%emt 0:10:16]} O-O {[%emt 0:04:21]} 12. h3 {[%emt 0:06:32]} a6 {[%emt 0:01:21]} 13. Bd3 {[%emt 0:03:10]} Nb4 {[%emt 0:06:24]} 14. Bf1 {[%emt 0:03:22]} c5 {[%emt 0:03:46]} (14... Bb5 $16) 15. g4 {[%emt 0:05:09]} b5 {[%emt 0:02:40]} 16. a3 {[%emt 0:07:50]} Nc6 {[%emt 0:00:51] [#]} 17. e5 $1 {[%emt 0:00:19]} Ne8 {[%emt 0:05:36]} 18. Nd5 {[%emt 0:12:05]} Qd8 {[%emt 0:08:06]} 19. exd6 {[%emt 0:03:07]} Nxd6 {[%emt 0:01:01]} 20. Qxc5 {[%emt 0:00:29]} Nb7 {[%emt 0:01:04]} 21. Qb6 {[%emt 0:08:11]} Qxb6 {[%emt 0:03:26]} 22. Nxb6 {[%emt 0:00:05]} Rad8 {[%emt 0:00:29]} 23. Nxd7 {[%emt 0:00:45]} (23. Bb4 $142 Be6 24. Bxf8 Rxd1+ 25. Rxd1 Bxf8 26. Ng5) 23... Rxd7 {[%emt 0:00:05]} 24. Bg2 {[%emt 0:03:25]} Rfd8 {[%emt 0:04:34]} 25. Ng5 {[%emt 0:06:05]} Nca5 {[%emt 0:06:53]} 26. b3 {[%emt 0:09:00]} h6 {[%emt 0:02:58]} (26... Nxb3+ $142 27. cxb3 Nc5) 27. Ne4 {[%emt 0:00:26]} Rc8 {[%emt 0:01:20]} 28. Kb1 {[%emt 0:01:31]} Rcd8 {[%emt 0:03:12]} 29. f5 {[%emt 0:01:20]} Kh7 {[%emt 0:03:47]} 30. Bf3 {[%emt 0:00:44]} Nc6 {[%emt 0:02:05]} 31. f6 {[%emt 0:00:43]} Bf8 {[%emt 0:00:45]} 32. Bc1 {[%emt 0:01:21]} Nd4 {[%emt 0:02:01]} 33. Bg2 {[%emt 0:00:05]} Nc5 {[%emt 0:04:10]} 34. Nxc5 {[%emt 0:01:24]} Bxc5 {[%emt 0:00:14]} 35. Rd3 {[%emt 0:00:02]} Ne6 {[%emt 0:00:51]} 36. Red1 {[%emt 0:00:52]} Rxd3 {[%emt 0:02:48]} 37. Rxd3 {[%emt 0:00:06]} Rxd3 {[%emt 0:00:08]} 38. cxd3 {[%emt 0:00:03]} a5 {[%emt 0:01:10]} 39. h4 {[%emt 0:01:19]} b4 {[%emt 0:01:53]} 40. axb4 {[%emt 0:00:55]} axb4 {[%emt 0:30:43]} 41. Bd5 {[%emt 0:30:49]} (41. Bd2 $16) 41... h5 {[%emt 0:05:02]} 42. Bxe6 {[%emt 0:00:00]} fxe6 {[%emt 0:00:00]} 43. g5 {[%emt 0:00:00]} Kg8 {[%emt 0:00:00]} 44. Kc2 {[%emt 0:00:00]} Bf2 {[%emt 0:00:00]} 45. Kd1 {[%emt 0:00:00]} Bxh4 {[%emt 0:00:00]} 46. Ke2 {[%emt 0:00:00]} Bg3 {[%emt 0:00:00]} 47. Kf3 {[%emt 0:00:00]} Be1 {[%emt 0:00:00]} 48. Bf4 {[%emt 0:00:00]} Kf7 {[%emt 0:00:00]} 49. Ke2 {[%emt 0:00:00]} Bc3 {[%emt 0:00:00]} 50. Bg3 {[%emt 0:00:00]} Bd4 {[%emt 0:00:00]} (50... Ke8) 1/2-1/2

[Event "DFMMLV 2017"]
[Site "Braunfels"]
[Date "2017.06.16"]
[Round "3"]
[White "Daemering, Katrin"]
[Black "Steimbach, Isabel"]
[Result "1-0"]
[ECO "B97"]
[WhiteElo "2030"]
[BlackElo "1972"]
[Annotator "NA"]
[PlyCount "61"]
[EventDate "2017.??.??"]
[EventType "team-tourn"]
[EventCountry "GER"]
[SourceTitle "playchess.com"]
[Source "ChessBase"]
[SourceQuality "1"]
[TimeControl "40/5400+30:1800+30"]

1. e4 {[%emt 0:00:00]} c5 {[%emt 0:00:03]} 2. Nf3 {[%emt 0:00:00]} d6 {[%emt 0:00:04]} 3. d4 {[%emt 0:00:00]} cxd4 {[%emt 0:00:04]} 4. Nxd4 {[%emt 0:00:00]} Nf6 {[%emt 0:00:06]} 5. Nc3 {[%emt 0:00:01]} a6 {[%emt 0:00:04]} 6. Bg5 {[%emt 0:01:07]} e6 {[%emt 0:00:07]} 7. f4 {[%emt 0:00:13]} Qb6 {[%emt 0:00:37]} 8. Nb3 {[%emt 0:02:26]} Nbd7 {[%emt 0:00:40]} 9. Qf3 {[%emt 0:02:01]} Be7 {[%emt 0:00:34]} 10. g4 {[%emt 0:03:38]} Qc7 {[%emt 0:01:53]} 11. O-O-O {[%emt 0:08:50]} b5 {[%emt 0:01:54]} 12. a3 {[%emt 0:04:38] B97: Sicilian Najdorf: Poisoned Pawn} (12. Bxf6 Nxf6 13. g5 Nd7 {½-½ (13) Drake Diez de Rivera,P (2555)-Toro Solis de Ovando,G (2616) ICCF email 2007}) 12... Bb7 {[%emt 0:01:53]} 13. Bd3 {[%emt 0:01:18]} Rc8 {[%emt 0:01:45]} 14. Rhe1 {[%emt 0:03:57]} h6 {[%emt 0:02:44]} 15. Qh3 {[%emt 0:03:41]} e5 $146 {[%emt 0:33:45]} ({Predecessor:} 15... Rg8 16. Bh4 d5 17. e5 Ne4 18. Bxe7 Kxe7 19. Bxe4 dxe4 {0-1 (32) Hrabusa,M (2077)-Krcal,M (2105) Frydek Mistek 2006}) 16. Bxf6 {[%emt 0:08:42]} Nxf6 {[%emt 0:03:46]} 17. g5 {[%emt 0:11:12]} Nd7 {[%emt 0:00:32]} 18. Nd5 {[%emt 0:02:07]} Bxd5 {[%emt 0:00:55]} 19. exd5 {[%emt 0:00:01]} exf4 {[%emt 0:00:37]} 20. g6 {[%emt 0:12:29]} Ne5 {[%emt 0:05:16]} 21. gxf7+ {[%emt 0:01:31]} Nxf7 {[%emt 0:01:45]} 22. Nd4 {[%emt 0:04:57]} O-O {[%emt 0:04:04]} 23. Ne6 $1 {[%emt 0:00:35]} Qd7 {[%emt 0:01:13]} (23... Ng5 $142) 24. Qf5 {[%emt 0:00:43]} Ng5 {[%emt 0:01:12]} 25. Qg6 {[%emt 0:07:25]} Bf6 {[%emt 0:09:55]} 26. Nxg5 {[%emt 0:00:12]} Bxg5 {[%emt 0:02:19]} 27. Qh7+ {[%emt 0:00:16]} Kf7 {[%emt 0:00:03]} 28. Bf5 {[%emt 0:05:30]} (28. Bg6+ $142 Kf6 29. Bh5 (29. Re6+ Qxe6 30. dxe6 Rh8 $17) 29... Rxc2+ 30. Kb1 Re2 31. Qg6+ Ke7 32. Qxg7+ Rf7 33. Qxf7+ Kd8 34. Qf8+ Kc7 35. Rc1+ Kb7 36. Rxe2) 28... f3+ {[%emt 0:08:17]} 29. Kb1 {[%emt 0:00:12]} Qc7 {[%emt 0:00:14]} 30. Bg6+ {[%emt 0:02:17]} Kf6 {[%emt 0:00:04]} 31. Re6# {[%emt 0:00:07]} 1-0

[Event "DFMMLV 2017"]
[Site "Braunfels"]
[Date "2017.06.16"]
[Round "3"]
[White "Pralle, Katharina"]
[Black "Fuchs, Antje"]
[Result "1-0"]
[ECO "A38"]
[WhiteElo "2018"]
[BlackElo "2052"]
[Annotator "NA"]
[PlyCount "57"]
[EventDate "2017.??.??"]
[EventType "team-tourn"]
[EventCountry "GER"]
[SourceTitle "playchess.com"]
[Source "ChessBase"]
[SourceQuality "1"]
[TimeControl "40/5400+30:1800+30"]

1. c4 {[%emt 0:00:00]} Nf6 {[%emt 0:00:20]} 2. Nc3 {[%emt 0:00:00]} g6 {[%emt 0:00:39]} 3. g3 {[%emt 0:00:12]} Bg7 {[%emt 0:00:44]} 4. Bg2 {[%emt 0:00:06]} c5 {[%emt 0:00:30]} 5. Nf3 {[%emt 0:00:38]} Nc6 {[%emt 0:00:17]} 6. O-O {[%emt 0:01:58]} d6 {[%emt 0:04:25]} 7. d4 {[%emt 0:03:54]} cxd4 {[%emt 0:00:47]} 8. Nxd4 {[%emt 0:00:11]} Bd7 {[%emt 0:01:00]} 9. Rb1 {[%emt 0:09:27] A31: Symmetrical English: 2 Nf3 Nf6 3 d4} (9. Nc2 O-O 10. b3 Qc8 11. Re1 Bh3 12. Bh1 Ng4 13. Qd2 Rd8 14. Rb1 h5 15. Nd5 Nf6 16. Nf4 Bf5 17. e4 Bg4 18. f3 Bd7 {0-1 (48) Ganguly,S (2644)-Lu,S (2624) Liaocheng 2017}) 9... Qc8 {[%emt 0:04:16]} 10. Nxc6 {[%emt 0:06:12]} bxc6 {[%emt 0:00:55]} 11. e4 $146 {[%emt 0:03:51]} ({Predecessor:} 11. b3 Bh3 12. Bb2 h5 13. f3 Bxg2 14. Kxg2 h4 15. Rh1 Qe6 16. Qd3 Rd8 {1-0 (54) Stepanenko,A-Evchin,M (2282) Kiev 2002}) 11... h5 {[%emt 0:06:20]} 12. h4 {[%emt 0:02:29]} Bh3 {[%emt 0:03:29]} 13. Re1 {[%emt 0:16:39]} Bxg2 {[%emt 0:02:19]} 14. Kxg2 {[%emt 0:00:08]} Ng4 {[%emt 0:01:38]} 15. Qc2 {[%emt 0:14:35]} Bd4 {[%emt 0:06:56]} 16. f3 $2 {[%emt 0:03:30]} (16. Rf1 $11 {and White has nothing to worry.}) 16... Nf2 {[%emt 0:01:55]} 17. Kf1 {[%emt 0:10:40]} Qh3+ {[%emt 0:03:13]} 18. Ke2 {[%emt 0:00:07]} Qxg3 {[%emt 0:06:42]} 19. Be3 {[%emt 0:05:49]} Bxe3 {[%emt 0:00:39]} 20. Kxe3 {[%emt 0:00:06]} Ng4+ {[%emt 0:00:39]} 21. Kd2 {[%emt 0:01:38]} Ne5 {[%emt 0:03:14]} 22. Qa4 {[%emt 0:04:30]} Nxf3+ {[%emt 0:03:35]} 23. Kc2 {[%emt 0:02:28]} Nxe1+ {[%emt 0:02:57]} 24. Rxe1 {[%emt 0:00:14]} O-O {[%emt 0:00:38]} 25. Re2 {[%emt 0:00:41]} Rfc8 {[%emt 0:00:55]} 26. c5 {[%emt 0:07:49]} Qxh4 {[%emt 0:01:34]} 27. cxd6 {[%emt 0:01:09]} exd6 {[%emt 0:01:11]} 28. Qb4 {[%emt 0:03:18]} Qf4 $19 {[%emt 0:04:57]} 29. Qd4 {[%emt 0:00:00]} 1-0